[Event "Titled Tuesday Blitz June 27 Late 2023"]
[White "Piesik, Piotr"]
[Black "Sanal, Vahap"]
[WhiteFideId "1136194"]
[BlackFideId "6300545"]
[WhiteElo "2616"]
[BlackElo "2971"]
[Result "0-1"]
[Round "2"]
[TimeControl "180+2"]
[Date "2023.06.27"]
[WhiteClock "0:00:43"]
[BlackClock "0:00:50"]
[Board "21"]

1. Nf3 {[%clk 0:02:58]}  d6 {[%clk 0:02:54]} 2. d4 {[%clk 0:02:58]}  c5 {[%clk 0:02:52]} 3. c3 {[%clk 0:02:54]}  Nd7 {[%clk 0:02:47]} 4. g3 {[%clk 0:02:54]}  Ngf6 {[%clk 0:02:47]} 5. Bg2 {[%clk 0:02:54]}  g6 {[%clk 0:02:47]} 6. O-O {[%clk 0:02:54]}  Bg7 {[%clk 0:02:48]} 7. Re1 {[%clk 0:02:52]}  d5 {[%clk 0:02:45]} 8. dxc5 {[%clk 0:02:48]}  Nxc5 {[%clk 0:02:45]} 9. Be3 {[%clk 0:02:49]}  Ne6 {[%clk 0:02:36]} 10. Nd4 {[%clk 0:02:44]}  O-O {[%clk 0:02:35]} 11. Nxe6 {[%clk 0:02:43]}  fxe6 {[%clk 0:02:29]} 12. Bd4 {[%clk 0:02:43]}  Qd6 {[%clk 0:02:27]} 13. f4 {[%clk 0:02:40]}  Ng4 {[%clk 0:02:27]} 14. Bxg7 {[%clk 0:02:39]}  Kxg7 {[%clk 0:02:27]} 15. Qd4+ {[%clk 0:02:38]}  e5 {[%clk 0:02:11]} 16. fxe5 {[%clk 0:02:37]}  Qxe5 {[%clk 0:02:12]} 17. Qxe5+ {[%clk 0:02:23]}  Nxe5 {[%clk 0:02:12]} 18. Bxd5 {[%clk 0:02:15]}  Bh3 {[%clk 0:02:12]} 19. Bg2 {[%clk 0:02:11]}  Bxg2 {[%clk 0:02:11]} 20. Kxg2 {[%clk 0:02:12]}  Nc4 {[%clk 0:02:11]} 21. e4 {[%clk 0:02:09]}  Rad8 {[%clk 0:02:05]} 22. b3 {[%clk 0:02:09]}  Ne5 {[%clk 0:02:05]} 23. a4 {[%clk 0:01:57]}  Nd3 {[%clk 0:02:03]} 24. Re2 {[%clk 0:01:56]}  Nc1 {[%clk 0:02:00]} 25. Rb2 {[%clk 0:01:52]}  Rd1 {[%clk 0:01:40]} 26. Na3 {[%clk 0:01:52]}  Rff1 {[%clk 0:01:38]} 27. Nb5 {[%clk 0:01:45]}  Rg1+ {[%clk 0:01:35]} 28. Kh3 {[%clk 0:01:45]}  h5 {[%clk 0:01:28]} 29. Nd4 {[%clk 0:01:32]}  g5 {[%clk 0:01:27]} 30. Rf2 {[%clk 0:01:15]}  Nd3 {[%clk 0:01:20]} 31. Ne6+ {[%clk 0:01:15]}  Kg6 {[%clk 0:01:17]} 32. Raa2 {[%clk 0:01:03]}  Nxf2+ {[%clk 0:01:11]} 33. Rxf2 {[%clk 0:01:04]}  Rgf1 {[%clk 0:01:04]} 34. Re2 {[%clk 0:00:59]}  b6 {[%clk 0:01:03]} 35. c4 {[%clk 0:00:55]}  Rde1 {[%clk 0:00:55]} 36. Rd2 {[%clk 0:00:53]}  Rxe4 {[%clk 0:00:54]} 37. Nd4 {[%clk 0:00:50]}  Rg1 {[%clk 0:00:52]} 38. Ne2 {[%clk 0:00:43]}  Rh4+ {[%clk 0:00:50]} 0-1


[Site "https://www.chess.com"]

[Event "Titled Tuesday Blitz June 27 Late 2023"]
[White "Kevlishvili, Robby"]
[Black "Andrej2004"]
[WhiteFideId "1040634"]
[WhiteElo "2960"]
[BlackElo "2614"]
[Result "1-0"]
[Round "2"]
[TimeControl "180+2"]
[Date "2023.06.27"]
[WhiteClock "0:00:03"]
[BlackClock "0:00:04"]
[Board "22"]

1. e4 {[%clk 0:03:00]}  e5 {[%clk 0:02:59]} 2. Nf3 {[%clk 0:03:00]}  Nc6 {[%clk 0:03:00]} 3. Nc3 {[%clk 0:02:59]}  Nf6 {[%clk 0:02:59]} 4. a3 {[%clk 0:02:58]}  g6 {[%clk 0:02:58]} 5. Bc4 {[%clk 0:02:58]}  Bg7 {[%clk 0:02:58]} 6. d3 {[%clk 0:02:58]}  O-O {[%clk 0:02:58]} 7. h3 {[%clk 0:02:58]}  d6 {[%clk 0:02:58]} 8. Be3 {[%clk 0:02:58]}  Be6 {[%clk 0:02:58]} 9. Qd2 {[%clk 0:02:51]}  d5 {[%clk 0:02:56]} 10. exd5 {[%clk 0:02:48]}  Nxd5 {[%clk 0:02:57]} 11. Bg5 {[%clk 0:02:39]}  f6 {[%clk 0:02:03]} 12. O-O {[%clk 0:02:27]}  Qd7 {[%clk 0:01:13]} 13. Bh4 {[%clk 0:02:12]}  Nf4 {[%clk 0:01:08]} 14. Bxe6+ {[%clk 0:02:11]}  Qxe6 {[%clk 0:01:09]} 15. Rfe1 {[%clk 0:02:11]}  Bh6 {[%clk 0:01:09]} 16. Qd1 {[%clk 0:02:05]}  Rae8 {[%clk 0:01:06]} 17. Bg3 {[%clk 0:02:05]}  Qd7 {[%clk 0:00:59]} 18. Ne4 {[%clk 0:01:57]}  Ne6 {[%clk 0:00:59]} 19. c4 {[%clk 0:01:52]}  Bg7 {[%clk 0:00:59]} 20. Qa4 {[%clk 0:01:50]}  Rd8 {[%clk 0:00:53]} 21. Rad1 {[%clk 0:01:49]}  Ncd4 {[%clk 0:00:53]} 22. Qxa7 {[%clk 0:01:40]}  Nxf3+ {[%clk 0:00:52]} 23. gxf3 {[%clk 0:01:40]}  Nd4 {[%clk 0:00:52]} 24. Kg2 {[%clk 0:01:39]}  b6 {[%clk 0:00:40]} 25. Qb7 {[%clk 0:01:29]}  Nc6 {[%clk 0:00:29]} 26. Nc3 {[%clk 0:01:19]}  Rb8 {[%clk 0:00:26]} 27. Qa6 {[%clk 0:01:19]}  Nd4 {[%clk 0:00:26]} 28. Qa7 {[%clk 0:01:02]}  Qc6 {[%clk 0:00:25]} 29. Nd5 {[%clk 0:01:02]}  Kh8 {[%clk 0:00:18]} 30. Qxc7 {[%clk 0:01:01]}  Qe6 {[%clk 0:00:18]} 31. f4 {[%clk 0:00:54]}  Rbc8 {[%clk 0:00:15]} 32. Qe7 {[%clk 0:00:54]}  Qf5 {[%clk 0:00:15]} 33. Qa7 {[%clk 0:00:41]}  exf4 {[%clk 0:00:14]} 34. Bxf4 {[%clk 0:00:38]}  g5 {[%clk 0:00:14]} 35. Qxb6 {[%clk 0:00:36]}  gxf4 {[%clk 0:00:13]} 36. Qxd4 {[%clk 0:00:37]}  Qg6+ {[%clk 0:00:13]} 37. Kh2 {[%clk 0:00:35]}  f5 {[%clk 0:00:13]} 38. Qxf4 {[%clk 0:00:30]}  Rb8 {[%clk 0:00:13]} 39. Rg1 {[%clk 0:00:30]}  Qe6 {[%clk 0:00:11]} 40. Rde1 {[%clk 0:00:29]}  Qf7 {[%clk 0:00:10]} 41. Re7 {[%clk 0:00:27]}  Rxb2 {[%clk 0:00:08]} 42. Rxf7 {[%clk 0:00:26]}  Rxf7 {[%clk 0:00:09]} 43. Rxg7 {[%clk 0:00:25]}  Rxg7 {[%clk 0:00:09]} 44. Qd4 {[%clk 0:00:24]}  Re2 {[%clk 0:00:07]} 45. Nf4 {[%clk 0:00:02]}  Re1 {[%clk 0:00:06]} 46. Nh5 {[%clk 0:00:02]}  Re7 {[%clk 0:00:05]} 47. Qd8+ {[%clk 0:00:02]}  Rg8 {[%clk 0:00:04]} 48. Qxe7 {[%clk 0:00:03]}  Rf8 {[%clk 0:00:04]} 49. Qxf8# {[%clk 0:00:03]} 1-0


[Site "https://www.chess.com"]

[Event "Titled Tuesday Blitz June 27 Late 2023"]
[White "Sun, Rick"]
[Black "Sjugirov, Sanan"]
[WhiteFideId "30909481"]
[BlackFideId "4189302"]
[WhiteElo "2602"]
[BlackElo "2938"]
[Result "0-1"]
[Round "2"]
[TimeControl "180+2"]
[Date "2023.06.27"]
[WhiteClock "0:00:00"]
[BlackClock "0:00:03"]
[Board "26"]

1. d4 {[%clk 0:03:00]}  Nf6 {[%clk 0:03:00]} 2. Nc3 {[%clk 0:03:00]}  d5 {[%clk 0:02:59]} 3. Bf4 {[%clk 0:03:00]}  Bf5 {[%clk 0:02:53]} 4. e3 {[%clk 0:03:00]}  e6 {[%clk 0:02:47]} 5. f3 {[%clk 0:03:00]}  a6 {[%clk 0:02:35]} 6. g4 {[%clk 0:03:00]}  Bg6 {[%clk 0:02:34]} 7. h4 {[%clk 0:02:59]}  h5 {[%clk 0:02:33]} 8. g5 {[%clk 0:02:59]}  Nfd7 {[%clk 0:02:34]} 9. Bd3 {[%clk 0:03:00]}  Bxd3 {[%clk 0:02:33]} 10. Qxd3 {[%clk 0:03:00]}  g6 {[%clk 0:02:31]} 11. O-O-O {[%clk 0:03:00]}  Bg7 {[%clk 0:02:17]} 12. e4 {[%clk 0:02:49]}  Nb6 {[%clk 0:02:04]} 13. Be5 {[%clk 0:02:02]}  Bxe5 {[%clk 0:01:49]} 14. dxe5 {[%clk 0:02:02]}  c6 {[%clk 0:01:47]} 15. exd5 {[%clk 0:01:46]}  cxd5 {[%clk 0:01:47]} 16. Ne4 {[%clk 0:01:39]}  Nc6 {[%clk 0:01:36]} 17. Nd6+ {[%clk 0:01:11]}  Kf8 {[%clk 0:01:35]} 18. f4 {[%clk 0:01:11]}  Qc7 {[%clk 0:01:20]} 19. Nf3 {[%clk 0:01:03]}  Kg7 {[%clk 0:01:08]} 20. Rhf1 {[%clk 0:00:52]}  Ne7 {[%clk 0:00:37]} 21. Kb1 {[%clk 0:00:47]}  Rad8 {[%clk 0:00:32]} 22. Nd4 {[%clk 0:00:43]}  Nc4 {[%clk 0:00:26]} 23. b3 {[%clk 0:00:33]}  Nxd6 {[%clk 0:00:22]} 24. exd6 {[%clk 0:00:34]}  Rxd6 {[%clk 0:00:19]} 25. Rde1 {[%clk 0:00:33]}  Rc8 {[%clk 0:00:16]} 26. Re2 {[%clk 0:00:31]}  Kg8 {[%clk 0:00:08]} 27. Rfe1 {[%clk 0:00:30]}  Qd7 {[%clk 0:00:07]} 28. Kb2 {[%clk 0:00:20]}  Rb6 {[%clk 0:00:06]} 29. Ka1 {[%clk 0:00:19]}  a5 {[%clk 0:00:06]} 30. a4 {[%clk 0:00:18]}  Nc6 {[%clk 0:00:05]} 31. Nxc6 {[%clk 0:00:15]}  Rbxc6 {[%clk 0:00:04]} 32. Kb2 {[%clk 0:00:13]}  Qc7 {[%clk 0:00:04]} 33. Rd2 {[%clk 0:00:07]}  Qxf4 {[%clk 0:00:04]} 34. Re3 {[%clk 0:00:04]}  Qxh4 {[%clk 0:00:04]} 35. Rf3 {[%clk 0:00:04]}  Qxg5 {[%clk 0:00:04]} 36. Rg3 {[%clk 0:00:03]}  Qe5+ {[%clk 0:00:04]} 37. Ka2 {[%clk 0:00:04]}  Rc3 {[%clk 0:00:04]} 38. Rxg6+ {[%clk 0:00:00]}  Kf8 {[%clk 0:00:03]} 0-1


[Site "https://www.chess.com"]

[Event "Titled Tuesday Blitz June 27 Late 2023"]
[White "Rodrigue-Lemieux, Shawn"]
[Black "MKlose11"]
[WhiteFideId "2620049"]
[WhiteElo "2937"]
[BlackElo "2600"]
[Result "1-0"]
[Round "2"]
[TimeControl "180+2"]
[Date "2023.06.27"]
[WhiteClock "0:01:11"]
[BlackClock "0:00:03"]
[Board "27"]

1. c4 {[%clk 0:03:00]}  Nf6 {[%clk 0:02:55]} 2. Nc3 {[%clk 0:03:00]}  c5 {[%clk 0:02:55]} 3. e3 {[%clk 0:03:00]}  g6 {[%clk 0:02:14]} 4. d4 {[%clk 0:02:58]}  cxd4 {[%clk 0:02:12]} 5. exd4 {[%clk 0:02:59]}  d5 {[%clk 0:02:13]} 6. cxd5 {[%clk 0:03:00]}  Bg7 {[%clk 0:02:12]} 7. Qa4+ {[%clk 0:02:53]}  Nbd7 {[%clk 0:02:09]} 8. Nf3 {[%clk 0:02:48]}  O-O {[%clk 0:02:08]} 9. Bc4 {[%clk 0:02:44]}  Nb6 {[%clk 0:02:08]} 10. Qb3 {[%clk 0:02:45]}  Nxc4 {[%clk 0:02:08]} 11. Qxc4 {[%clk 0:02:46]}  b6 {[%clk 0:01:28]} 12. Ne5 {[%clk 0:02:44]}  Bb7 {[%clk 0:01:28]} 13. Nc6 {[%clk 0:02:45]}  Qd7 {[%clk 0:01:23]} 14. b4 {[%clk 0:02:43]}  a6 {[%clk 0:01:18]} 15. O-O {[%clk 0:02:23]}  Rfc8 {[%clk 0:01:12]} 16. Be3 {[%clk 0:01:54]}  Bxc6 {[%clk 0:01:12]} 17. dxc6 {[%clk 0:01:55]}  Rxc6 {[%clk 0:01:09]} 18. Qd3 {[%clk 0:01:52]}  Nd5 {[%clk 0:01:00]} 19. Nxd5 {[%clk 0:01:36]}  Qxd5 {[%clk 0:01:01]} 20. a4 {[%clk 0:01:34]}  e5 {[%clk 0:00:38]} 21. b5 {[%clk 0:01:29]}  axb5 {[%clk 0:00:29]} 22. Qxb5 {[%clk 0:01:24]}  Qxb5 {[%clk 0:00:16]} 23. axb5 {[%clk 0:01:25]}  Rcc8 {[%clk 0:00:17]} 24. d5 {[%clk 0:01:22]}  e4 {[%clk 0:00:13]} 25. Rxa8 {[%clk 0:01:15]}  Rxa8 {[%clk 0:00:14]} 26. Rb1 {[%clk 0:01:15]}  Rd8 {[%clk 0:00:11]} 27. Bxb6 {[%clk 0:01:10]}  Rxd5 {[%clk 0:00:10]} 28. Bc7 {[%clk 0:01:11]}  Be5 {[%clk 0:00:05]} 29. b6 {[%clk 0:01:09]}  Bxc7 {[%clk 0:00:04]} 30. bxc7 {[%clk 0:01:10]}  Rc5 {[%clk 0:00:03]} 31. Rb8+ {[%clk 0:01:10]}  Kg7 {[%clk 0:00:04]} 32. c8=Q {[%clk 0:01:10]}  Rxc8 {[%clk 0:00:03]} 33. Rxc8 {[%clk 0:01:11]} 1-0


[Site "https://www.chess.com"]

[Event "Titled Tuesday Blitz June 27 Late 2023"]
[White "Aldokhin, Ivan"]
[Black "Antipov, Mikhail Al."]
[WhiteFideId "24115720"]
[BlackFideId "4107012"]
[WhiteElo "2599"]
[BlackElo "2925"]
[Result "1-0"]
[Round "2"]
[TimeControl "180+2"]
[Date "2023.06.27"]
[WhiteClock "0:00:03"]
[BlackClock "0:00:01"]
[Board "28"]

1. e4 {[%clk 0:02:59]}  c5 {[%clk 0:02:13]} 2. Nf3 {[%clk 0:02:59]}  d6 {[%clk 0:02:14]} 3. d4 {[%clk 0:02:59]}  cxd4 {[%clk 0:02:15]} 4. Nxd4 {[%clk 0:03:00]}  Nf6 {[%clk 0:02:15]} 5. Nc3 {[%clk 0:03:00]}  a6 {[%clk 0:02:16]} 6. Bc4 {[%clk 0:03:01]}  e6 {[%clk 0:02:12]} 7. Bb3 {[%clk 0:03:01]}  Nbd7 {[%clk 0:02:11]} 8. O-O {[%clk 0:03:01]}  Nc5 {[%clk 0:02:05]} 9. Qf3 {[%clk 0:03:01]}  Be7 {[%clk 0:02:04]} 10. Re1 {[%clk 0:02:57]}  O-O {[%clk 0:02:00]} 11. Qg3 {[%clk 0:02:52]}  Qc7 {[%clk 0:01:39]} 12. Bh6 {[%clk 0:02:51]}  Ne8 {[%clk 0:01:39]} 13. Rad1 {[%clk 0:02:47]}  Kh8 {[%clk 0:01:10]} 14. Bg5 {[%clk 0:02:35]}  f6 {[%clk 0:00:59]} 15. Bc1 {[%clk 0:02:34]}  b5 {[%clk 0:01:00]} 16. a3 {[%clk 0:02:14]}  Bd7 {[%clk 0:00:42]} 17. f4 {[%clk 0:02:10]}  Qb7 {[%clk 0:00:19]} 18. f5 {[%clk 0:02:06]}  e5 {[%clk 0:00:19]} 19. Bd5 {[%clk 0:01:39]}  Qa7 {[%clk 0:00:19]} 20. Nce2 {[%clk 0:01:00]}  exd4 {[%clk 0:00:15]} 21. Nf4 {[%clk 0:01:01]}  Be6 {[%clk 0:00:04]} 22. Bxa8 {[%clk 0:00:45]}  Qxa8 {[%clk 0:00:04]} 23. fxe6 {[%clk 0:00:43]}  Nc7 {[%clk 0:00:04]} 24. Qh3 {[%clk 0:00:40]}  Kg8 {[%clk 0:00:04]} 25. Rxd4 {[%clk 0:00:37]}  Qc8 {[%clk 0:00:05]} 26. Nd5 {[%clk 0:00:34]}  Re8 {[%clk 0:00:05]} 27. Nxe7+ {[%clk 0:00:28]}  Rxe7 {[%clk 0:00:06]} 28. Rxd6 {[%clk 0:00:28]}  N7xe6 {[%clk 0:00:05]} 29. Red1 {[%clk 0:00:25]}  h6 {[%clk 0:00:02]} 30. Rd8+ {[%clk 0:00:20]}  Qxd8 {[%clk 0:00:03]} 31. Rxd8+ {[%clk 0:00:21]}  Nxd8 {[%clk 0:00:03]} 32. Qc8 {[%clk 0:00:21]}  Nb7 {[%clk 0:00:03]} 33. Be3 {[%clk 0:00:16]}  Kf7 {[%clk 0:00:01]} 34. Bc5 {[%clk 0:00:11]}  Nxc5 {[%clk 0:00:01]} 35. Qxc5 {[%clk 0:00:10]}  Ne6 {[%clk 0:00:01]} 36. Qd6 {[%clk 0:00:10]}  Rc7 {[%clk 0:00:02]} 37. Qxa6 {[%clk 0:00:10]}  Rxc2 {[%clk 0:00:02]} 38. Qxb5 {[%clk 0:00:10]}  Kg6 {[%clk 0:00:01]} 39. Qf5+ {[%clk 0:00:09]}  Kf7 {[%clk 0:00:01]} 40. Qb5 {[%clk 0:00:08]}  Kg6 {[%clk 0:00:01]} 41. h4 {[%clk 0:00:08]}  Nd4 {[%clk 0:00:01]} 42. Qd3 {[%clk 0:00:07]}  Ne2+ {[%clk 0:00:01]} 43. Kf2 {[%clk 0:00:04]}  Rxb2 {[%clk 0:00:01]} 44. Qxe2 {[%clk 0:00:04]}  Rb3 {[%clk 0:00:01]} 45. a4 {[%clk 0:00:03]}  Ra3 {[%clk 0:00:01]} 46. Qb5 {[%clk 0:00:03]}  h5 {[%clk 0:00:01]} 47. Qf5+ {[%clk 0:00:03]} 1-0


[Site "https://www.chess.com"]

[Event "Titled Tuesday Blitz June 27 Late 2023"]
[White "Muradli, Mahammad"]
[Black "Atanasov, Anthony"]
[WhiteFideId "13409301"]
[BlackFideId "2623897"]
[WhiteElo "2919"]
[BlackElo "2599"]
[Result "0-1"]
[Round "2"]
[TimeControl "180+2"]
[Date "2023.06.27"]
[WhiteClock "0:00:10"]
[BlackClock "0:00:21"]
[Board "29"]

1. Nf3 {[%clk 0:03:00]}  d5 {[%clk 0:02:50]} 2. e3 {[%clk 0:02:56]}  c6 {[%clk 0:02:51]} 3. c4 {[%clk 0:02:54]}  Nf6 {[%clk 0:02:51]} 4. b3 {[%clk 0:02:54]}  Bf5 {[%clk 0:02:51]} 5. Bb2 {[%clk 0:02:54]}  Nbd7 {[%clk 0:02:50]} 6. d4 {[%clk 0:02:53]}  e6 {[%clk 0:02:50]} 7. Bd3 {[%clk 0:02:45]}  Bd6 {[%clk 0:02:48]} 8. O-O {[%clk 0:02:42]}  h5 {[%clk 0:02:46]} 9. Re1 {[%clk 0:02:40]}  Ne4 {[%clk 0:02:39]} 10. Nc3 {[%clk 0:02:36]}  Qf6 {[%clk 0:02:40]} 11. Bxe4 {[%clk 0:02:09]}  dxe4 {[%clk 0:02:41]} 12. Nd2 {[%clk 0:02:10]}  Bxh2+ {[%clk 0:02:37]} 13. Kxh2 {[%clk 0:02:05]}  Qh4+ {[%clk 0:02:38]} 14. Kg1 {[%clk 0:02:05]}  Nf6 {[%clk 0:02:39]} 15. f3 {[%clk 0:01:59]}  Ng4 {[%clk 0:02:38]} 16. Nf1 {[%clk 0:01:00]}  Qf2+ {[%clk 0:02:32]} 17. Kh1 {[%clk 0:01:00]}  Qh4+ {[%clk 0:02:32]} 18. Kg1 {[%clk 0:01:00]}  Qf2+ {[%clk 0:02:33]} 19. Kh1 {[%clk 0:00:05]}  Qxb2 {[%clk 0:02:34]} 20. Qd2 {[%clk 0:00:02]}  Nf2+ {[%clk 0:02:23]} 21. Kg1 {[%clk 0:00:02]}  Qxd2 {[%clk 0:02:21]} 22. Nxd2 {[%clk 0:00:03]}  Nd3 {[%clk 0:02:22]} 23. Rf1 {[%clk 0:00:03]}  exf3 {[%clk 0:02:20]} 24. Rxf3 {[%clk 0:00:04]}  Bg4 {[%clk 0:02:17]} 25. Rff1 {[%clk 0:00:04]}  e5 {[%clk 0:02:16]} 26. Nde4 {[%clk 0:00:03]}  exd4 {[%clk 0:02:11]} 27. exd4 {[%clk 0:00:04]}  Rd8 {[%clk 0:02:02]} 28. d5 {[%clk 0:00:04]}  f5 {[%clk 0:01:58]} 29. Ng5 {[%clk 0:00:04]}  Rh6 {[%clk 0:01:52]} 30. Ne6 {[%clk 0:00:04]}  Rxe6 {[%clk 0:01:47]} 31. dxe6 {[%clk 0:00:05]}  f4 {[%clk 0:01:48]} 32. a3 {[%clk 0:00:02]}  Bxe6 {[%clk 0:01:47]} 33. Rad1 {[%clk 0:00:02]}  g5 {[%clk 0:01:47]} 34. Ne4 {[%clk 0:00:02]}  g4 {[%clk 0:01:44]} 35. Nf6+ {[%clk 0:00:01]}  Ke7 {[%clk 0:01:43]} 36. Nxh5 {[%clk 0:00:02]}  g3 {[%clk 0:00:48]} 37. Rfe1 {[%clk 0:00:01]}  Rd7 {[%clk 0:00:17]} 38. Nxf4 {[%clk 0:00:02]}  Nxf4 {[%clk 0:00:17]} 39. Rxd7+ {[%clk 0:00:02]}  Kxd7 {[%clk 0:00:18]} 40. Re3 {[%clk 0:00:03]}  b5 {[%clk 0:00:12]} 41. cxb5 {[%clk 0:00:03]}  cxb5 {[%clk 0:00:11]} 42. b4 {[%clk 0:00:04]}  Bc4 {[%clk 0:00:11]} 43. Rf3 {[%clk 0:00:02]}  Ne2+ {[%clk 0:00:11]} 44. Kh1 {[%clk 0:00:03]}  Kd6 {[%clk 0:00:12]} 45. Rf6+ {[%clk 0:00:02]}  Ke5 {[%clk 0:00:12]} 46. Ra6 {[%clk 0:00:02]}  Kd4 {[%clk 0:00:13]} 47. Rxa7 {[%clk 0:00:02]}  Kc3 {[%clk 0:00:13]} 48. a4 {[%clk 0:00:02]}  Kxb4 {[%clk 0:00:14]} 49. axb5 {[%clk 0:00:02]}  Kxb5 {[%clk 0:00:14]} 50. Re7 {[%clk 0:00:03]}  Kc5 {[%clk 0:00:13]} 51. Rxe2 {[%clk 0:00:04]}  Bxe2 {[%clk 0:00:13]} 52. Kg1 {[%clk 0:00:05]}  Kd4 {[%clk 0:00:14]} 53. Kh1 {[%clk 0:00:06]}  Ke3 {[%clk 0:00:14]} 54. Kg1 {[%clk 0:00:06]}  Kd2 {[%clk 0:00:15]} 55. Kh1 {[%clk 0:00:07]}  Kd1 {[%clk 0:00:14]} 56. Kg1 {[%clk 0:00:08]}  Ke1 {[%clk 0:00:15]} 57. Kh1 {[%clk 0:00:09]}  Bd3 {[%clk 0:00:14]} 58. Kg1 {[%clk 0:00:09]}  Be4 {[%clk 0:00:15]} 59. Kh1 {[%clk 0:00:10]}  Ke2 {[%clk 0:00:14]} 60. Kg1 {[%clk 0:00:11]}  Bc6 {[%clk 0:00:14]} 61. Kh1 {[%clk 0:00:11]}  Be8 {[%clk 0:00:15]} 62. Kg1 {[%clk 0:00:12]}  Bf7 {[%clk 0:00:15]} 63. Kh1 {[%clk 0:00:11]}  Bg8 {[%clk 0:00:16]} 64. Kg1 {[%clk 0:00:11]}  Bh7 {[%clk 0:00:17]} 65. Kh1 {[%clk 0:00:12]}  Bb1 {[%clk 0:00:17]} 66. Kg1 {[%clk 0:00:13]}  Ba2 {[%clk 0:00:18]} 67. Kh1 {[%clk 0:00:14]}  Bb3 {[%clk 0:00:19]} 68. Kg1 {[%clk 0:00:14]}  Ba4 {[%clk 0:00:20]} 69. Kh1 {[%clk 0:00:15]}  Bc6 {[%clk 0:00:20]} 70. Kg1 {[%clk 0:00:16]}  Bf3 {[%clk 0:00:21]} 71. Kh1 {[%clk 0:00:10]}  Kf2 {[%clk 0:00:21]} 0-1


[Site "https://www.chess.com"]

[Event "Titled Tuesday Blitz June 27 Late 2023"]
[White "Wachinger, Nikolas"]
[Black "Chigaev, Maksim"]
[WhiteFideId "12962791"]
[BlackFideId "4108116"]
[WhiteElo "2591"]
[BlackElo "2896"]
[Result "0-1"]
[Round "2"]
[TimeControl "180+2"]
[Date "2023.06.27"]
[WhiteClock "0:00:08"]
[BlackClock "0:01:09"]
[Board "33"]

1. d4 {[%clk 0:03:00]}  Nf6 {[%clk 0:02:59]} 2. Nf3 {[%clk 0:03:01]}  g6 {[%clk 0:03:00]} 3. c4 {[%clk 0:03:00]}  Bg7 {[%clk 0:03:01]} 4. e3 {[%clk 0:03:01]}  O-O {[%clk 0:03:01]} 5. Be2 {[%clk 0:03:02]}  d6 {[%clk 0:03:02]} 6. Nc3 {[%clk 0:03:01]}  Nbd7 {[%clk 0:03:02]} 7. O-O {[%clk 0:02:59]}  e5 {[%clk 0:03:03]} 8. b4 {[%clk 0:03:00]}  exd4 {[%clk 0:02:51]} 9. Nxd4 {[%clk 0:03:01]}  c5 {[%clk 0:02:44]} 10. bxc5 {[%clk 0:02:41]}  dxc5 {[%clk 0:02:44]} 11. Ndb5 {[%clk 0:02:40]}  Ne5 {[%clk 0:02:28]} 12. Ba3 {[%clk 0:01:49]}  b6 {[%clk 0:02:14]} 13. Qxd8 {[%clk 0:01:49]}  Rxd8 {[%clk 0:02:15]} 14. Rad1 {[%clk 0:01:49]}  Bb7 {[%clk 0:02:03]} 15. Rxd8+ {[%clk 0:01:36]}  Rxd8 {[%clk 0:02:02]} 16. Nxa7 {[%clk 0:01:36]}  Ne4 {[%clk 0:01:55]} 17. Nxe4 {[%clk 0:00:59]}  Bxe4 {[%clk 0:01:56]} 18. f3 {[%clk 0:01:00]}  Rd2 {[%clk 0:01:49]} 19. Rf2 {[%clk 0:00:36]}  Bd3 {[%clk 0:01:14]} 20. Bxd3 {[%clk 0:00:20]}  Rxd3 {[%clk 0:01:14]} 21. Bc1 {[%clk 0:00:20]}  Nxc4 {[%clk 0:01:11]} 22. e4 {[%clk 0:00:09]}  Rd1+ {[%clk 0:01:09]} 23. Rf1 {[%clk 0:00:08]}  Bd4+ {[%clk 0:01:09]} 0-1


[Site "https://www.chess.com"]

[Event "Titled Tuesday Blitz June 27 Late 2023"]
[White "Henriquez Villagra, Cristobal"]
[Black "Vdovin, Vadim"]
[WhiteFideId "3409350"]
[BlackFideId "24107158"]
[WhiteElo "2892"]
[BlackElo "2589"]
[Result "0-1"]
[Round "2"]
[TimeControl "180+2"]
[Date "2023.06.27"]
[WhiteClock "0:00:08"]
[BlackClock "0:00:04"]
[Board "34"]

1. g3 {[%clk 0:03:00]}  d5 {[%clk 0:02:58]} 2. Bg2 {[%clk 0:03:01]}  Nf6 {[%clk 0:02:58]} 3. d3 {[%clk 0:03:01]}  c5 {[%clk 0:02:58]} 4. c4 {[%clk 0:02:54]}  d4 {[%clk 0:02:57]} 5. Nf3 {[%clk 0:02:53]}  h6 {[%clk 0:02:55]} 6. O-O {[%clk 0:02:53]}  Nc6 {[%clk 0:02:54]} 7. e4 {[%clk 0:02:51]}  e5 {[%clk 0:02:53]} 8. Nh4 {[%clk 0:02:52]}  g6 {[%clk 0:02:33]} 9. a3 {[%clk 0:02:50]}  a5 {[%clk 0:02:33]} 10. Qe1 {[%clk 0:02:50]}  Be7 {[%clk 0:02:18]} 11. f4 {[%clk 0:02:43]}  Ng4 {[%clk 0:02:06]} 12. Nf3 {[%clk 0:02:37]}  Bf6 {[%clk 0:01:44]} 13. h3 {[%clk 0:01:58]}  Ne3 {[%clk 0:01:44]} 14. Bxe3 {[%clk 0:01:59]}  dxe3 {[%clk 0:01:45]} 15. Nc3 {[%clk 0:01:59]}  Nd4 {[%clk 0:01:30]} 16. Rd1 {[%clk 0:01:45]}  exf4 {[%clk 0:01:21]} 17. gxf4 {[%clk 0:01:46]}  Nxf3+ {[%clk 0:01:11]} 18. Rxf3 {[%clk 0:01:46]}  Bd4 {[%clk 0:01:07]} 19. Kh1 {[%clk 0:01:43]}  O-O {[%clk 0:00:57]} 20. Qe2 {[%clk 0:01:40]}  Qh4 {[%clk 0:00:55]} 21. f5 {[%clk 0:01:32]}  g5 {[%clk 0:00:29]} 22. Nd5 {[%clk 0:01:25]}  b5 {[%clk 0:00:20]} 23. Nxe3 {[%clk 0:01:17]}  bxc4 {[%clk 0:00:20]} 24. Nxc4 {[%clk 0:01:16]}  Rb8 {[%clk 0:00:18]} 25. Qe1 {[%clk 0:01:05]}  Qh5 {[%clk 0:00:17]} 26. Rd2 {[%clk 0:00:48]}  Ba6 {[%clk 0:00:17]} 27. Nxa5 {[%clk 0:00:48]}  Bxb2 {[%clk 0:00:14]} 28. Rc2 {[%clk 0:00:45]}  Bd4 {[%clk 0:00:13]} 29. Nc6 {[%clk 0:00:36]}  Rb3 {[%clk 0:00:13]} 30. Nxd4 {[%clk 0:00:26]}  cxd4 {[%clk 0:00:14]} 31. Qg3 {[%clk 0:00:27]}  Rxa3 {[%clk 0:00:10]} 32. Kh2 {[%clk 0:00:25]}  Qh4 {[%clk 0:00:09]} 33. Qxh4 {[%clk 0:00:21]}  gxh4 {[%clk 0:00:10]} 34. Rd2 {[%clk 0:00:21]}  Rc8 {[%clk 0:00:09]} 35. Bf1 {[%clk 0:00:22]}  Rcc3 {[%clk 0:00:09]} 36. Kg2 {[%clk 0:00:13]}  Kf8 {[%clk 0:00:09]} 37. f6 {[%clk 0:00:13]}  Ke8 {[%clk 0:00:09]} 38. Kf2 {[%clk 0:00:14]}  Kd7 {[%clk 0:00:09]} 39. Rf5 {[%clk 0:00:14]}  Bxd3 {[%clk 0:00:09]} 40. Rd5+ {[%clk 0:00:14]}  Ke6 {[%clk 0:00:09]} 41. Bg2 {[%clk 0:00:15]}  Bb1 {[%clk 0:00:03]} 42. R5xd4 {[%clk 0:00:14]}  Ba2 {[%clk 0:00:03]} 43. Rd6+ {[%clk 0:00:09]}  Ke5 {[%clk 0:00:03]} 44. Rb6 {[%clk 0:00:09]}  Bc4 {[%clk 0:00:03]} 45. Rc6 {[%clk 0:00:07]}  Rab3 {[%clk 0:00:04]} 46. Rc5+ {[%clk 0:00:04]}  Ke6 {[%clk 0:00:04]} 47. e5 {[%clk 0:00:05]}  Rd3 {[%clk 0:00:03]} 48. Rc2 {[%clk 0:00:05]}  Rbc3 {[%clk 0:00:02]} 49. Rxc4 {[%clk 0:00:05]}  Rxc4 {[%clk 0:00:02]} 50. Rxc4 {[%clk 0:00:05]}  Rd2+ {[%clk 0:00:03]} 51. Kf3 {[%clk 0:00:05]}  Rd3+ {[%clk 0:00:03]} 52. Kf2 {[%clk 0:00:06]}  Rd2+ {[%clk 0:00:03]} 53. Kg1 {[%clk 0:00:07]}  Rd1+ {[%clk 0:00:04]} 54. Kh2 {[%clk 0:00:07]}  Kxe5 {[%clk 0:00:04]} 55. Rxh4 {[%clk 0:00:08]}  Kxf6 {[%clk 0:00:04]} 56. Rxh6+ {[%clk 0:00:09]}  Kg5 {[%clk 0:00:05]} 57. Rh4 {[%clk 0:00:10]}  Kxh4 {[%clk 0:00:05]} 58. Bf3 {[%clk 0:00:08]}  Rd2+ {[%clk 0:00:05]} 59. Bg2 {[%clk 0:00:08]}  Rb2 {[%clk 0:00:04]} 60. Kg1 {[%clk 0:00:07]}  Kg3 {[%clk 0:00:05]} 61. Bd5 {[%clk 0:00:08]}  Rb1# {[%clk 0:00:04]} 0-1


[Site "https://www.chess.com"]